[Event "*** SCC Grand Prix: Titled Tuesday Blitz"]
[Site "Chess.com"]
[Date "2020.07.07"]
[Round "2"]
[White "tylityli"]
[Black "Lucas_Tomiello"]
[Result "0-1"]
[WhiteElo "2170"]
[BlackElo "2423"]
[TimeControl "180+1"]
[EndTime "10:20:04 PDT"]
[Termination "Lucas_Tomiello won on time"]

1. d4 {[%clk 0:03:00.9]} 1... Nf6 {[%clk 0:03:00]} 2. c4 {[%clk 0:03:00.6]} 2...
g6 {[%clk 0:03:00.6]} 3. Nc3 {[%clk 0:02:59.4]} 3... d5 {[%clk 0:03:01]} 4. cxd5
{[%clk 0:02:58.4]} 4... Nxd5 {[%clk 0:03:01.9]} 5. Bd2 {[%clk 0:02:58.5]} 5...
Bg7 {[%clk 0:02:58.1]} 6. e4 {[%clk 0:02:57.6]} 6... Nb6 {[%clk 0:02:56.8]} 7.
Be3 {[%clk 0:02:51]} 7... O-O {[%clk 0:02:56.9]} 8. Bb5 {[%clk 0:02:49.3]} 8...
e5 {[%clk 0:02:41.4]} 9. Nf3 {[%clk 0:02:46.7]} 9... exd4 {[%clk 0:02:39.3]} 10.
Bxd4 {[%clk 0:02:46.3]} 10... c6 {[%clk 0:02:31.5]} 11. Be2 {[%clk 0:02:44.4]}
11... Bxd4 {[%clk 0:02:24.1]} 12. Qxd4 {[%clk 0:02:43.4]} 12... Qxd4 {[%clk
0:02:23.7]} 13. Nxd4 {[%clk 0:02:44.3]} 13... N8d7 {[%clk 0:02:23.2]} 14. f4
{[%clk 0:02:37.8]} 14... Re8 {[%clk 0:02:19.8]} 15. O-O {[%clk 0:02:33.9]} 15...
f6 {[%clk 0:02:06.8]} 16. a4 {[%clk 0:02:26.6]} 16... a5 {[%clk 0:02:05]} 17. b3
{[%clk 0:02:06.4]} 17... Kg7 {[%clk 0:02:02.7]} 18. Bf3 {[%clk 0:02:02.6]} 18...
Nc5 {[%clk 0:01:50.8]} 19. Rfd1 {[%clk 0:01:56.6]} 19... Ne6 {[%clk 0:01:44.4]}
20. g3 {[%clk 0:01:50.3]} 20... Nxd4 {[%clk 0:01:40.3]} 21. Rxd4 {[%clk
0:01:51.2]} 21... Be6 {[%clk 0:01:40.9]} 22. b4 {[%clk 0:01:48.5]} 22... Nc4
{[%clk 0:01:30]} 23. b5 {[%clk 0:01:33.8]} 23... c5 {[%clk 0:01:24]} 24. Rd3
{[%clk 0:01:26.4]} 24... Rad8 {[%clk 0:00:58]} 25. Rad1 {[%clk 0:01:24.1]} 25...
Rxd3 {[%clk 0:00:57.9]} 26. Rxd3 {[%clk 0:01:25]} 26... Re7 {[%clk 0:00:46.3]}
27. Kf2 {[%clk 0:01:14.8]} 27... Nb2 {[%clk 0:00:32.2]} 28. Rd8 {[%clk
0:01:11.6]} 28... Bb3 {[%clk 0:00:25.5]} 29. b6 {[%clk 0:00:42.8]} 29... Nxa4
{[%clk 0:00:24.3]} 30. Nxa4 {[%clk 0:00:37.4]} 30... Bxa4 {[%clk 0:00:25.2]} 31.
Rc8 {[%clk 0:00:37.4]} 31... Bb3 {[%clk 0:00:21.9]} 32. Rxc5 {[%clk 0:00:35.7]}
32... a4 {[%clk 0:00:22.5]} 33. Ra5 {[%clk 0:00:23.4]} 33... Kf7 {[%clk
0:00:20.7]} 34. Ke3 {[%clk 0:00:19.7]} 34... Ke6 {[%clk 0:00:19.9]} 35. Kd4
{[%clk 0:00:18.8]} 35... Kd6 {[%clk 0:00:20.4]} 36. e5+ {[%clk 0:00:16.9]} 36...
fxe5+ {[%clk 0:00:20.2]} 37. fxe5+ {[%clk 0:00:17.8]} 37... Ke6 {[%clk
0:00:19.4]} 38. Bg4+ {[%clk 0:00:17.7]} 38... Kf7 {[%clk 0:00:19.9]} 39. Ra7
{[%clk 0:00:15.7]} 39... h5 {[%clk 0:00:19.9]} 40. Bf3 {[%clk 0:00:14.8]} 40...
Rd7+ {[%clk 0:00:19.1]} 41. Kc3 {[%clk 0:00:13.8]} 41... Ke6 {[%clk 0:00:19.6]}
42. Bxb7 {[%clk 0:00:11.4]} 42... Kxe5 {[%clk 0:00:19]} 43. Bc6 {[%clk
0:00:10.9]} 43... Rd6 {[%clk 0:00:18.6]} 44. Bxa4 {[%clk 0:00:09.1]} 44... Bxa4
{[%clk 0:00:17.9]} 45. Rxa4 {[%clk 0:00:10]} 45... Rxb6 {[%clk 0:00:18.4]} 46.
Kd3 {[%clk 0:00:09.3]} 46... Rb2 {[%clk 0:00:17.7]} 47. Ra5+ {[%clk 0:00:08]}
47... Kf6 {[%clk 0:00:17.5]} 48. Ra6+ {[%clk 0:00:08]} 48... Kg5 {[%clk
0:00:17.8]} 49. Ra5+ {[%clk 0:00:07.4]} 49... Kg4 {[%clk 0:00:18.4]} 50. Ra4+
{[%clk 0:00:07.2]} 50... Kf3 {[%clk 0:00:16.8]} 51. Ra6 {[%clk 0:00:04.5]} 51...
g5 {[%clk 0:00:14.7]} 52. Rf6+ {[%clk 0:00:04.3]} 52... Kg4 {[%clk 0:00:14.4]}
53. h4 {[%clk 0:00:02.4]} 53... gxh4 {[%clk 0:00:13]} 54. gxh4 {[%clk
0:00:02.4]} 54... Kxh4 {[%clk 0:00:13.2]} 55. Ke3 {[%clk 0:00:02.7]} 55... Kg3
{[%clk 0:00:13.4]} 56. Rg6+ {[%clk 0:00:02.4]} 56... Kh3 {[%clk 0:00:12.8]} 57.
Kf3 {[%clk 0:00:02.8]} 57... h4 {[%clk 0:00:13.4]} 58. Rg5 {[%clk 0:00:02]}
58... Rb3+ {[%clk 0:00:10.1]} 59. Kf2 {[%clk 0:00:02.2]} 59... Rb2+ {[%clk
0:00:10.8]} 60. Kf3 {[%clk 0:00:02.4]} 60... Kh2 {[%clk 0:00:10.4]} 61. Rg4
{[%clk 0:00:02]} 61... h3 {[%clk 0:00:10.8]} 62. Rg5 {[%clk 0:00:02]} 62... Rb1
{[%clk 0:00:10.7]} 63. Kf2 {[%clk 0:00:02]} 63... Rb2+ {[%clk 0:00:10.7]} 64.
Kf1 {[%clk 0:00:02.1]} 64... Rb6 {[%clk 0:00:11.4]} 65. Kf2 {[%clk 0:00:02]}
65... Rf6+ {[%clk 0:00:11.8]} 66. Ke1 {[%clk 0:00:02.2]} 66... Kh1 {[%clk
0:00:11.5]} 67. Rg3 {[%clk 0:00:01.4]} 67... h2 {[%clk 0:00:11.4]} 68. Ke2
{[%clk 0:00:01.3]} 68... Rf5 {[%clk 0:00:11.6]} 69. Ke1 {[%clk 0:00:01.4]} 69...
Ra5 {[%clk 0:00:11.4]} 70. Kf2 {[%clk 0:00:01.3]} 70... Ra2+ {[%clk 0:00:11.8]}
71. Kf1 {[%clk 0:00:01.4]} 71... Ra1+ {[%clk 0:00:12.3]} 72. Kf2 {[%clk
0:00:01.8]} 72... Rg1 {[%clk 0:00:12.2]} 0-1

[Event "*** SCC Grand Prix: Titled Tuesday Blitz"]
[Site "Chess.com"]
[Date "2020.07.07"]
[Round "2"]
[White "AlexOstrovskiy"]
[Black "RodinMihail"]
[Result "1/2-1/2"]
[WhiteElo "2662"]
[BlackElo "2477"]
[TimeControl "180+1"]
[EndTime "10:20:09 PDT"]
[Termination "Game drawn - insufficient material"]

1. d4 {[%clk 0:03:00.9]} 1... d5 {[%clk 0:02:59.4]} 2. Bf4 {[%clk 0:02:59.8]}
2... c5 {[%clk 0:02:59.1]} 3. e3 {[%clk 0:02:58.9]} 3... Nc6 {[%clk 0:02:58.9]}
4. c3 {[%clk 0:02:59.1]} 4... Nf6 {[%clk 0:02:58.7]} 5. Nd2 {[%clk 0:02:58.8]}
5... Bf5 {[%clk 0:02:58.3]} 6. Ngf3 {[%clk 0:02:57.6]} 6... e6 {[%clk
0:02:58.4]} 7. Qb3 {[%clk 0:02:57.4]} 7... Qd7 {[%clk 0:02:57.9]} 8. Ne5 {[%clk
0:02:48.7]} 8... Nxe5 {[%clk 0:02:56]} 9. dxe5 {[%clk 0:02:49.6]} 9... c4 {[%clk
0:02:56.4]} 10. Nxc4 {[%clk 0:02:41.3]} 10... dxc4 {[%clk 0:02:53.4]} 11. Bxc4
{[%clk 0:02:42.2]} 11... O-O-O {[%clk 0:02:53.1]} 12. exf6 {[%clk 0:02:35.6]}
12... Qd2+ {[%clk 0:02:52.6]} 13. Kf1 {[%clk 0:02:36]} 13... gxf6 {[%clk
0:02:49]} 14. Be2 {[%clk 0:01:55.8]} 14... Bc2 {[%clk 0:02:46.8]} 15. Qb5 {[%clk
0:01:48.2]} 15... e5 {[%clk 0:02:45.3]} 16. Bg3 {[%clk 0:01:42.8]} 16... Kb8
{[%clk 0:02:21.3]} 17. Re1 {[%clk 0:01:22]} 17... Rg8 {[%clk 0:02:13]} 18. h4
{[%clk 0:01:06.1]} 18... Bd6 {[%clk 0:01:39.7]} 19. h5 {[%clk 0:01:01.1]} 19...
a6 {[%clk 0:01:34.3]} 20. Qa5 {[%clk 0:00:56.7]} 20... Bc7 {[%clk 0:01:31]} 21.
Qb4 {[%clk 0:00:56.7]} 21... f5 {[%clk 0:01:17.3]} 22. Rh4 {[%clk 0:00:43.5]}
22... Bd3 {[%clk 0:01:09.5]} 23. Bxd3 {[%clk 0:00:35.3]} 23... Qxd3+ {[%clk
0:01:05.1]} 24. Kg1 {[%clk 0:00:33]} 24... Qd2 {[%clk 0:00:58.8]} 25. Rf1 {[%clk
0:00:26.8]} 25... f6 {[%clk 0:00:53.6]} 26. Rc4 {[%clk 0:00:20.1]} 26... Rd7
{[%clk 0:00:48.6]} 27. Rc6 {[%clk 0:00:17.2]} 27... f4 {[%clk 0:00:38.4]} 28.
exf4 {[%clk 0:00:16.2]} 28... Qd5 {[%clk 0:00:29.4]} 29. Rxc7 {[%clk 0:00:13.9]}
29... Rxc7 {[%clk 0:00:26.1]} 30. fxe5 {[%clk 0:00:14]} 30... fxe5 {[%clk
0:00:26.8]} 31. Re1 {[%clk 0:00:12.8]} 31... Re8 {[%clk 0:00:25.1]} 32. Qe4
{[%clk 0:00:12.2]} 32... Qxe4 {[%clk 0:00:23.4]} 33. Rxe4 {[%clk 0:00:13.1]}
33... Rce7 {[%clk 0:00:23.8]} 34. f3 {[%clk 0:00:12.2]} 34... Kc8 {[%clk
0:00:23.6]} 35. Kf2 {[%clk 0:00:12.2]} 35... Kd7 {[%clk 0:00:23.9]} 36. Ke2
{[%clk 0:00:11.7]} 36... Kd6 {[%clk 0:00:24.1]} 37. a4 {[%clk 0:00:10.2]} 37...
Kd5 {[%clk 0:00:24.2]} 38. Bf2 {[%clk 0:00:09.3]} 38... b5 {[%clk 0:00:24]} 39.
axb5 {[%clk 0:00:08.9]} 39... axb5 {[%clk 0:00:24.9]} 40. Rb4 {[%clk 0:00:09.5]}
40... Rb7 {[%clk 0:00:24.6]} 41. Re4 {[%clk 0:00:08.1]} 41... Reb8 {[%clk
0:00:18.1]} 42. Bg3 {[%clk 0:00:05.5]} 42... Re8 {[%clk 0:00:17.7]} 43. Be1
{[%clk 0:00:05.6]} 43... Rg8 {[%clk 0:00:16.8]} 44. g4 {[%clk 0:00:05.9]} 44...
Rf8 {[%clk 0:00:17.1]} 45. Bg3 {[%clk 0:00:05.7]} 45... Re7 {[%clk 0:00:17.1]}
46. Kd3 {[%clk 0:00:05.5]} 46... Rxf3+ {[%clk 0:00:13.2]} 47. Re3 {[%clk
0:00:06]} 47... Rxe3+ {[%clk 0:00:13.4]} 48. Kxe3 {[%clk 0:00:06.9]} 48... e4
{[%clk 0:00:13.8]} 49. g5 {[%clk 0:00:06.7]} 49... Rf7 {[%clk 0:00:13.9]} 50.
Bf4 {[%clk 0:00:07.1]} 50... Rf5 {[%clk 0:00:12.5]} 51. g6 {[%clk 0:00:06.8]}
51... hxg6 {[%clk 0:00:13]} 52. hxg6 {[%clk 0:00:07.7]} 52... Rf6 {[%clk
0:00:13.4]} 53. g7 {[%clk 0:00:07.5]} 53... Rg6 {[%clk 0:00:13.8]} 54. Bh6
{[%clk 0:00:08]} 54... Rg3+ {[%clk 0:00:14.1]} 55. Kf4 {[%clk 0:00:07.8]} 55...
Rg6 {[%clk 0:00:14.7]} 56. b3 {[%clk 0:00:07.2]} 56... Ke6 {[%clk 0:00:14.4]}
57. Kxe4 {[%clk 0:00:07]} 57... Kf7 {[%clk 0:00:14.7]} 58. Be3 {[%clk
0:00:07.6]} 58... Rxg7 {[%clk 0:00:13.7]} 59. Bd4 {[%clk 0:00:06.5]} 59... Rg4+
{[%clk 0:00:13.6]} 60. Kd5 {[%clk 0:00:06.8]} 60... Rg5+ {[%clk 0:00:14.3]} 61.
Kc6 {[%clk 0:00:07]} 61... Ke6 {[%clk 0:00:14.8]} 62. Bc5 {[%clk 0:00:06.7]}
62... Rg3 {[%clk 0:00:13.8]} 63. Bd4 {[%clk 0:00:06.1]} 63... Rg5 {[%clk
0:00:12.5]} 64. b4 {[%clk 0:00:04.5]} 64... Rd5 {[%clk 0:00:11.2]} 65. Bc5
{[%clk 0:00:04.5]} 65... Rd3 {[%clk 0:00:09.7]} 66. Bd4 {[%clk 0:00:04.9]} 66...
Rh3 {[%clk 0:00:07.4]} 67. Kxb5 {[%clk 0:00:05.1]} 67... Kd5 {[%clk 0:00:08.3]}
68. Bc5 {[%clk 0:00:04.2]} 68... Rh7 {[%clk 0:00:08.2]} 69. c4+ {[%clk
0:00:04.3]} 69... Ke6 {[%clk 0:00:07.9]} 70. Bb6 {[%clk 0:00:04.3]} 70... Kd7
{[%clk 0:00:08.8]} 71. c5 {[%clk 0:00:04.4]} 71... Kc8 {[%clk 0:00:09.7]} 72. c6
{[%clk 0:00:04.4]} 72... Rh5+ {[%clk 0:00:10.5]} 73. Bc5 {[%clk 0:00:04.7]}
73... Kc7 {[%clk 0:00:11.4]} 74. Kc4 {[%clk 0:00:03.7]} 74... Kxc6 {[%clk
0:00:11.7]} 75. Be3 {[%clk 0:00:03.6]} 75... Rh4+ {[%clk 0:00:11.5]} 76. Bd4
{[%clk 0:00:03.9]} 76... Rg4 {[%clk 0:00:11.2]} 77. b5+ {[%clk 0:00:03.8]} 77...
Kb7 {[%clk 0:00:12.1]} 78. Kc5 {[%clk 0:00:03.8]} 78... Rg5+ {[%clk 0:00:12.6]}
79. Kc4 {[%clk 0:00:04.1]} 79... Rxb5 {[%clk 0:00:13.5]} 80. Kxb5 {[%clk
0:00:05]} 1/2-1/2

[Event "*** SCC Grand Prix: Titled Tuesday Blitz"]
[Site "Chess.com"]
[Date "2020.07.07"]
[Round "2"]
[White "nocnypako"]
[Black "Oleksandr_Bortnyk"]
[Result "1/2-1/2"]
[WhiteElo "2584"]
[BlackElo "2918"]
[TimeControl "180+1"]
[EndTime "10:20:10 PDT"]
[Termination "Game drawn by repetition"]

1. d4 {[%clk 0:03:00.9]} 1... Nf6 {[%clk 0:02:59.1]} 2. c4 {[%clk 0:03:01]} 2...
e6 {[%clk 0:02:58.7]} 3. Nc3 {[%clk 0:03:01.5]} 3... d5 {[%clk 0:02:58.8]} 4.
cxd5 {[%clk 0:03:01]} 4... exd5 {[%clk 0:02:59.7]} 5. Bg5 {[%clk 0:03:00.9]}
5... Be7 {[%clk 0:02:59.2]} 6. e3 {[%clk 0:03:01.5]} 6... c6 {[%clk 0:02:59.5]}
7. Bd3 {[%clk 0:03:02]} 7... Nbd7 {[%clk 0:02:59.7]} 8. Nge2 {[%clk 0:03:02.1]}
8... Nf8 {[%clk 0:03:00.1]} 9. O-O {[%clk 0:03:01.9]} 9... Ne6 {[%clk
0:02:56.1]} 10. Bh4 {[%clk 0:03:02]} 10... O-O {[%clk 0:02:56.2]} 11. Qc2 {[%clk
0:03:02.2]} 11... g6 {[%clk 0:02:56]} 12. f3 {[%clk 0:03:01.3]} 12... Re8 {[%clk
0:02:35.7]} 13. Rad1 {[%clk 0:03:00.7]} 13... Ng7 {[%clk 0:02:31.2]} 14. Bf2
{[%clk 0:03:00.6]} 14... Be6 {[%clk 0:02:25.1]} 15. e4 {[%clk 0:02:59.3]} 15...
dxe4 {[%clk 0:02:24.9]} 16. Nxe4 {[%clk 0:02:57.2]} 16... Nd5 {[%clk 0:02:24.6]}
17. a3 {[%clk 0:02:55]} 17... Rc8 {[%clk 0:02:02.5]} 18. Nc5 {[%clk 0:02:48.2]}
18... b6 {[%clk 0:02:03]} 19. Nxe6 {[%clk 0:02:45]} 19... Nxe6 {[%clk
0:02:03.9]} 20. Nc3 {[%clk 0:02:36.4]} 20... Bf6 {[%clk 0:01:58.5]} 21. Nxd5
{[%clk 0:02:28.7]} 21... cxd5 {[%clk 0:01:59.4]} 22. Qa4 {[%clk 0:02:25]} 22...
Re7 {[%clk 0:01:51.9]} 23. Ba6 {[%clk 0:02:15.2]} 23... Ra8 {[%clk 0:01:29.3]}
24. Bg3 {[%clk 0:02:06.2]} 24... h5 {[%clk 0:01:21.4]} 25. Rfe1 {[%clk
0:01:30.3]} 25... h4 {[%clk 0:01:08.3]} 26. Bf2 {[%clk 0:01:28.6]} 26... Kg7
{[%clk 0:01:05.6]} 27. Kf1 {[%clk 0:01:18.5]} 27... Qd6 {[%clk 0:01:04.3]} 28.
Kg1 {[%clk 0:01:16.9]} 28... Rae8 {[%clk 0:00:59.8]} 29. Qb4 {[%clk 0:01:08]}
29... Qxb4 {[%clk 0:00:32.7]} 30. axb4 {[%clk 0:01:08.9]} 30... Rc7 {[%clk
0:00:33.3]} 31. Rc1 {[%clk 0:00:54.2]} 31... Rxc1 {[%clk 0:00:32.7]} 32. Rxc1
{[%clk 0:00:55.1]} 32... Nxd4 {[%clk 0:00:32.6]} 33. Rd1 {[%clk 0:00:54.6]}
33... Ne2+ {[%clk 0:00:31.9]} 34. Kf1 {[%clk 0:00:54.4]} 34... Nf4 {[%clk
0:00:32.3]} 35. g3 {[%clk 0:00:51.6]} 35... Nh3 {[%clk 0:00:32.2]} 36. Rxd5
{[%clk 0:00:48.8]} 36... Nxf2 {[%clk 0:00:31.4]} 37. Kxf2 {[%clk 0:00:48.6]}
37... Re7 {[%clk 0:00:24.5]} 38. b3 {[%clk 0:00:43.6]} 38... Rc7 {[%clk
0:00:23.7]} 39. Bc4 {[%clk 0:00:41.9]} 39... hxg3+ {[%clk 0:00:23.5]} 40. hxg3
{[%clk 0:00:41.8]} 40... Bc3 {[%clk 0:00:24.4]} 41. b5 {[%clk 0:00:41.8]} 41...
Bb4 {[%clk 0:00:24.8]} 42. f4 {[%clk 0:00:41.9]} 42... Bc5+ {[%clk 0:00:25.7]}
43. Kf3 {[%clk 0:00:42.3]} 43... Re7 {[%clk 0:00:26.6]} 44. Rd3 {[%clk 0:00:42]}
44... f6 {[%clk 0:00:22.5]} 45. g4 {[%clk 0:00:42.1]} 45... g5 {[%clk
0:00:21.4]} 46. fxg5 {[%clk 0:00:41.2]} 46... fxg5 {[%clk 0:00:21.6]} 47. Rd5
{[%clk 0:00:40.9]} 47... Re3+ {[%clk 0:00:20.7]} 48. Kg2 {[%clk 0:00:40.8]}
48... Kf6 {[%clk 0:00:21]} 49. Rd7 {[%clk 0:00:38.1]} 49... Ke5 {[%clk
0:00:20.6]} 50. Rf7 {[%clk 0:00:36.9]} 50... Rc3 {[%clk 0:00:19.6]} 51. Rf5+
{[%clk 0:00:36.5]} 51... Ke4 {[%clk 0:00:20.2]} 52. Rxg5 {[%clk 0:00:36.6]}
52... Kf4 {[%clk 0:00:20.7]} 53. Rf5+ {[%clk 0:00:29.7]} 53... Kxg4 {[%clk
0:00:20.7]} 54. Rf7 {[%clk 0:00:30.3]} 54... Rc2+ {[%clk 0:00:21]} 55. Kf1
{[%clk 0:00:30.5]} 55... Bb4 {[%clk 0:00:16.7]} 56. Rxa7 {[%clk 0:00:26.7]}
56... Bc3 {[%clk 0:00:17]} 57. Rf7 {[%clk 0:00:26.2]} 57... Kg3 {[%clk
0:00:16.9]} 58. Rf8 {[%clk 0:00:20.4]} 58... Be5 {[%clk 0:00:17]} 59. Bd5 {[%clk
0:00:14.5]} 59... Bd6 {[%clk 0:00:09.5]} 60. Rf3+ {[%clk 0:00:13.2]} 60... Kg4
{[%clk 0:00:10]} 61. Rf7 {[%clk 0:00:12.9]} 61... Bf4 {[%clk 0:00:06.7]} 62.
Rg7+ {[%clk 0:00:09.8]} 62... Kf5 {[%clk 0:00:06.6]} 63. Rf7+ {[%clk 0:00:09.6]}
63... Ke5 {[%clk 0:00:07.2]} 64. Bc4 {[%clk 0:00:09.8]} 64... Be3 {[%clk
0:00:07.5]} 65. Ke1 {[%clk 0:00:09.2]} 65... Kd4 {[%clk 0:00:06.7]} 66. Rd7+
{[%clk 0:00:08.8]} 66... Kc5 {[%clk 0:00:06.8]} 67. Rd5+ {[%clk 0:00:08.3]}
67... Kb4 {[%clk 0:00:06.9]} 68. Rd3 {[%clk 0:00:08.8]} 68... Bc5 {[%clk
0:00:05.6]} 69. Rd2 {[%clk 0:00:08.5]} 69... Rc3 {[%clk 0:00:05]} 70. Rd3 {[%clk
0:00:08]} 70... Rc1+ {[%clk 0:00:04.8]} 71. Rd1 {[%clk 0:00:08.1]} 71... Rc2
{[%clk 0:00:05.2]} 72. Rd2 {[%clk 0:00:08]} 72... Rc3 {[%clk 0:00:04.8]} 73. Rd3
{[%clk 0:00:08]} 73... Rxd3 {[%clk 0:00:03.2]} 74. Bxd3 {[%clk 0:00:08.2]} 74...
Kxb3 {[%clk 0:00:04.1]} 75. Ke2 {[%clk 0:00:08.6]} 75... Kc3 {[%clk 0:00:04.5]}
76. Bf5 {[%clk 0:00:08.5]} 76... Kc4 {[%clk 0:00:04.7]} 77. Bd7 {[%clk
0:00:09.4]} 77... Kd5 {[%clk 0:00:04.8]} 78. Bc6+ {[%clk 0:00:10.3]} 78... Kd4
{[%clk 0:00:05.6]} 79. Be8 {[%clk 0:00:10.6]} 79... Be7 {[%clk 0:00:05.8]} 80.
Bc6 {[%clk 0:00:11.5]} 80... Kc4 {[%clk 0:00:06.5]} 81. Be8 {[%clk 0:00:12.1]}
81... Bf6 {[%clk 0:00:07]} 82. Bc6 {[%clk 0:00:12.7]} 82... Kc5 {[%clk
0:00:07.9]} 83. Be8 {[%clk 0:00:13.2]} 83... Kd6 {[%clk 0:00:08.2]} 84. Bc6
{[%clk 0:00:13.8]} 84... Bd4 {[%clk 0:00:08.9]} 85. Kd3 {[%clk 0:00:14.4]} 85...
Bc5 {[%clk 0:00:09.8]} 86. Kc2 {[%clk 0:00:15]} 86... Ke7 {[%clk 0:00:10.5]} 87.
Kd3 {[%clk 0:00:15.9]} 87... Kd6 {[%clk 0:00:11]} 88. Kc2 {[%clk 0:00:16.8]}
88... Kc7 {[%clk 0:00:11.6]} 89. Kd3 {[%clk 0:00:17.7]} 89... Kd6 {[%clk
0:00:12.5]} 1/2-1/2

[Event "*** SCC Grand Prix: Titled Tuesday Blitz"]
[Site "Chess.com"]
[Date "2020.07.07"]
[Round "2"]
[White "fish7728"]
[Black "amatatanav"]
[Result "0-1"]
[WhiteElo "2174"]
[BlackElo "2426"]
[TimeControl "180+1"]
[EndTime "10:20:16 PDT"]
[Termination "amatatanav won by checkmate"]

1. d4 {[%clk 0:02:51.5]} 1... Nf6 {[%clk 0:02:59.6]} 2. c4 {[%clk 0:02:51.5]}
2... e6 {[%clk 0:02:59.3]} 3. Nc3 {[%clk 0:02:52]} 3... d5 {[%clk 0:02:59.7]} 4.
cxd5 {[%clk 0:02:50.2]} 4... exd5 {[%clk 0:03:00.6]} 5. Bg5 {[%clk 0:02:50.2]}
5... Be7 {[%clk 0:03:01.1]} 6. e3 {[%clk 0:02:50.4]} 6... h6 {[%clk 0:02:59.3]}
7. Bf4 {[%clk 0:02:49.7]} 7... O-O {[%clk 0:02:57.1]} 8. Bd3 {[%clk 0:02:49.7]}
8... Bd6 {[%clk 0:02:03.5]} 9. Bxd6 {[%clk 0:02:47.6]} 9... Qxd6 {[%clk
0:02:02.9]} 10. Nf3 {[%clk 0:02:48.2]} 10... Bg4 {[%clk 0:02:00.8]} 11. h3
{[%clk 0:02:48.1]} 11... Bxf3 {[%clk 0:02:00.4]} 12. Qxf3 {[%clk 0:02:47.8]}
12... c6 {[%clk 0:01:59.3]} 13. O-O-O {[%clk 0:02:44.5]} 13... b5 {[%clk
0:01:53]} 14. g4 {[%clk 0:02:43.2]} 14... a5 {[%clk 0:01:36.2]} 15. h4 {[%clk
0:02:42.7]} 15... a4 {[%clk 0:01:36.2]} 16. g5 {[%clk 0:02:42.8]} 16... Nfd7
{[%clk 0:01:33.5]} 17. gxh6 {[%clk 0:02:26]} 17... Qxh6 {[%clk 0:01:34.4]} 18.
h5 {[%clk 0:02:17.5]} 18... b4 {[%clk 0:01:24.5]} 19. Ne2 {[%clk 0:02:16.4]}
19... a3 {[%clk 0:01:00.6]} 20. b3 {[%clk 0:02:14.5]} 20... c5 {[%clk
0:00:24.8]} 21. Qxd5 {[%clk 0:02:09.1]} 21... Nb6 {[%clk 0:00:19.5]} 22. Qf5
{[%clk 0:01:37.5]} 22... cxd4 {[%clk 0:00:16.3]} 23. Nxd4 {[%clk 0:01:31.5]}
23... N8d7 {[%clk 0:00:16.3]} 24. Rhg1 {[%clk 0:01:15.9]} 24... Rac8+ {[%clk
0:00:16.6]} 25. Kb1 {[%clk 0:01:04.9]} 25... Rc5 {[%clk 0:00:17.5]} 26. Qf4
{[%clk 0:00:33.7]} 26... Qxf4 {[%clk 0:00:14.7]} 27. exf4 {[%clk 0:00:34.6]}
27... Rxh5 {[%clk 0:00:11.8]} 28. Nf5 {[%clk 0:00:33.9]} 28... g6 {[%clk
0:00:07.6]} 29. Ne7+ {[%clk 0:00:23.8]} 29... Kg7 {[%clk 0:00:07.1]} 30. f5
{[%clk 0:00:20.6]} 30... Kf6 {[%clk 0:00:05.2]} 31. Nxg6 {[%clk 0:00:14.4]}
31... fxg6 {[%clk 0:00:04.4]} 32. Rxg6+ {[%clk 0:00:15.3]} 32... Kf7 {[%clk
0:00:01.4]} 33. Re1 {[%clk 0:00:16.2]} 33... Re8 {[%clk 0:00:01.5]} 34. Reg1
{[%clk 0:00:14.6]} 34... Rf8 {[%clk 0:00:01.5]} 35. Rg7+ {[%clk 0:00:14.4]}
35... Ke8 {[%clk 0:00:02.4]} 36. Re1+ {[%clk 0:00:13.1]} 36... Kd8 {[%clk
0:00:02.9]} 37. Ree7 {[%clk 0:00:13.4]} 37... Rhxf5 {[%clk 0:00:03.1]} 38. Bxf5
{[%clk 0:00:12.7]} 38... Rxf5 {[%clk 0:00:04]} 39. Re2 {[%clk 0:00:12.6]} 39...
Nd5 {[%clk 0:00:04]} 40. Rd2 {[%clk 0:00:12.9]} 40... N5b6 {[%clk 0:00:03.2]}
41. Rg8+ {[%clk 0:00:12.4]} 41... Kc7 {[%clk 0:00:03.1]} 42. Rc2+ {[%clk
0:00:13.3]} 42... Kd6 {[%clk 0:00:02.7]} 43. Rg7 {[%clk 0:00:14.2]} 43... Nd5
{[%clk 0:00:02.5]} 44. Rg6+ {[%clk 0:00:14.1]} 44... Rf6 {[%clk 0:00:02.6]} 45.
Rxf6+ {[%clk 0:00:13.6]} 45... N7xf6 {[%clk 0:00:03.5]} 46. Rc4 {[%clk
0:00:12.7]} 46... Ke5 {[%clk 0:00:03.8]} 47. f4+ {[%clk 0:00:11.8]} 47... Kf5
{[%clk 0:00:03.4]} 48. Rd4 {[%clk 0:00:10.6]} 48... Ke6 {[%clk 0:00:03.1]} 49.
Rc4 {[%clk 0:00:09.4]} 49... Nh5 {[%clk 0:00:03.3]} 50. f5+ {[%clk 0:00:07.9]}
50... Kxf5 {[%clk 0:00:03.2]} 51. Kc2 {[%clk 0:00:08.2]} 51... Nhf6 {[%clk
0:00:04.1]} 52. Kd3 {[%clk 0:00:08.3]} 52... Ke5 {[%clk 0:00:04.6]} 53. Rc5
{[%clk 0:00:07.6]} 53... Kd6 {[%clk 0:00:04.5]} 54. Ra5 {[%clk 0:00:07.2]} 54...
Nd7 {[%clk 0:00:03.1]} 55. Ra6+ {[%clk 0:00:05.5]} 55... Ke5 {[%clk 0:00:02]}
56. Ra5 {[%clk 0:00:05.1]} 56... Ke6 {[%clk 0:00:02.9]} 57. Ra6+ {[%clk
0:00:05.1]} 57... Ke5 {[%clk 0:00:03.8]} 58. Ra5 {[%clk 0:00:05.4]} 58... Nf6
{[%clk 0:00:04.7]} 59. Kc4 {[%clk 0:00:04.5]} 59... Ke4 {[%clk 0:00:03.7]} 60.
Ra6 {[%clk 0:00:03.9]} 60... Ke5 {[%clk 0:00:02.8]} 61. Ra5 {[%clk 0:00:03.9]}
61... Ke6 {[%clk 0:00:03.2]} 62. Ra6+ {[%clk 0:00:03.5]} 62... Kd7 {[%clk
0:00:03.5]} 63. Ra7+ {[%clk 0:00:03.7]} 63... Kc6 {[%clk 0:00:03.8]} 64. Ra4
{[%clk 0:00:04.3]} 64... Nb6+ {[%clk 0:00:03.6]} 65. Kd4 {[%clk 0:00:03.5]}
65... Nxa4 {[%clk 0:00:03.5]} 66. bxa4 {[%clk 0:00:04.4]} 66... Kb6 {[%clk
0:00:04.1]} 67. Kc4 {[%clk 0:00:04.9]} 67... Ka5 {[%clk 0:00:04.6]} 68. Kb3
{[%clk 0:00:05.4]} 68... Nd7 {[%clk 0:00:04.9]} 69. Kc4 {[%clk 0:00:05.9]} 69...
Nb6+ {[%clk 0:00:05.4]} 70. Kb3 {[%clk 0:00:05.6]} 70... Nxa4 {[%clk 0:00:05.7]}
71. Kc2 {[%clk 0:00:06.2]} 71... Nc3 {[%clk 0:00:05.9]} 72. Kb3 {[%clk
0:00:06.1]} 72... Kb5 {[%clk 0:00:06.5]} 73. Kc2 {[%clk 0:00:06.5]} 73... Nxa2
{[%clk 0:00:06.8]} 74. Kb1 {[%clk 0:00:06.7]} 74... Nc3+ {[%clk 0:00:07.3]} 75.
Ka1 {[%clk 0:00:06.6]} 75... Na4 {[%clk 0:00:06.3]} 76. Ka2 {[%clk 0:00:07]}
76... Kc4 {[%clk 0:00:06.5]} 77. Kb1 {[%clk 0:00:07.9]} 77... b3 {[%clk
0:00:06.5]} 78. Ka1 {[%clk 0:00:08.3]} 78... b2+ {[%clk 0:00:06.6]} 79. Kb1
{[%clk 0:00:09.1]} 79... Nc3+ {[%clk 0:00:06.8]} 80. Kc2 {[%clk 0:00:09.2]}
80... b1=Q+ {[%clk 0:00:07.7]} 81. Kd2 {[%clk 0:00:09]} 81... Qd3+ {[%clk
0:00:08.1]} 82. Kc1 {[%clk 0:00:09.1]} 82... Qd1# {[%clk 0:00:08.4]} 0-1